{"text_format":"1","workbook":"xlsx","n_sheets":4,"sheets":["出品一覧表","出品申込書","出品一覧表 （手書きで提出する場合)","出品申込書 (手書きで提出する場合)"],"not_rendered":{"charts":0,"images":0,"macros":1,"external_links":0,"defined_names":4,"comments":2,"pivot_tables":0},"unopened":[],"bounds":{"document_bytes":16777216,"sheet_cells":100000,"rows_first":2000,"rows_last":500,"rows_between":2000,"halvings":0,"cell_chars":16384,"cell_head_chars":4096},"cells_cut":0,"cells_raw":0,"read":"whole","date_system":"1900"}

{"sheet":"出品一覧表","index":0,"n_rows":72,"n_cols":13,"rows_kept":72,"cut":false,"hidden":false,"merged":[[0,2,0,5],[66,4,66,5],[67,4,67,5],[68,4,68,5],[69,4,69,5],[61,4,61,5],[48,4,48,5],[46,4,46,5],[29,4,29,5],[30,4,30,5],[31,4,31,5],[32,4,32,5],[33,4,33,5],[43,4,43,5],[41,4,41,5],[42,4,42,5],[71,4,71,5],[34,4,34,5],[35,4,35,5],[60,4,60,5],[54,4,54,5],[45,4,45,5],[58,4,58,5],[57,4,57,5],[56,4,56,5],[55,4,55,5],[65,4,65,5],[62,4,62,5],[63,4,63,5],[64,4,64,5],[50,4,50,5],[37,4,37,5],[5,3,5,5],[38,4,38,5],[39,4,39,5],[40,4,40,5],[70,4,70,5],[47,4,47,5],[44,4,44,5],[17,4,17,5],[18,4,18,5],[19,4,19,5],[14,4,14,5],[15,4,15,5],[8,4,8,5],[9,4,9,5],[10,4,10,5],[16,4,16,5],[11,4,11,5],[12,4,12,5],[13,4,13,5],[2,12,3,12],[2,10,3,10],[2,3,2,4],[3,3,3,5],[4,3,4,5],[2,11,3,11],[7,4,7,5],[26,4,26,5],[59,4,59,5],[23,4,23,5],[20,4,20,5],[21,4,21,5],[22,4,22,5],[49,4,49,5],[52,4,52,5],[53,4,53,5],[51,4,51,5],[24,4,24,5],[28,4,28,5],[36,4,36,5],[25,4,25,5],[27,4,27,5]]}
[null,"出品一覧表",{"$f":"CONCATENATE(K3,L3,M3)","v":"第22回岩手県高等学校書道作品コンクール"}]
[]
[null,null,"団体名",null,null,"高等学校",null,null,null,null,"第",22,"回岩手県高等学校書道作品コンクール"]
[null,null,"住所"]
[null,null,"℡"]
[null,null,"責任教師"]
[]
["整理\n番号","氏　　名　","ふりがな","学年","作　品　題　名",null,"横","種別","釈文"]
[1,"清　水　大　輔","しみず　だいすけ",null,"〇〇〇　臨書"]
[2]
[3]
[4]
[5]
[6]
[7]
[8]
[9]
[10]
[11]
[12]
[13]
[14]
[15]
[16]
[17]
[18]
["整理\n番号","氏　　名　","ふりがな","学　年","作　品　題　名",null,"横","種別","釈文"]
[19]
[20]
[21]
[22]
[23]
[24]
[25]
[26]
[27]
[28]
[29]
[30]
[31]
[32]
[33]
[34]
[35]
[36]
[37]
[38]
[39]
[40]
["整理\n番号","氏　　名　","ふりがな","学　年","作　品　題　名",null,"横","種別","釈文"]
[41]
[42]
[43]
[44]
[45]
[46]
[47]
[48]
[49]
[50]
[51]
[52]
[53]
[54]
[55]
[56]
[57]
[58]
[59]
[60]
[61]
[62]

{"sheet":"出品申込書","index":1,"n_rows":50,"n_cols":75,"rows_kept":50,"cut":false,"hidden":false,"merged":[[40,36,40,41],[25,19,26,24],[7,40,7,41],[5,38,6,39],[45,11,45,15],[43,38,44,39],[9,17,14,40],[32,40,32,41],[38,19,39,24],[30,38,31,39],[30,19,31,32],[29,19,29,32],[42,19,42,32],[45,40,45,41],[5,3,6,14],[30,3,31,14],[0,44,0,47],[0,36,0,41],[27,36,27,41],[1,44,3,48],[5,19,6,32],[17,4,18,6],[32,11,32,15],[1,35,1,42],[0,2,0,13],[43,3,44,14],[16,2,19,3],[17,10,18,12],[17,7,18,9],[17,13,18,15],[0,15,0,30],[10,3,13,14],[14,7,15,9],[7,11,7,15],[43,19,44,32],[4,19,4,32],[16,17,19,40]]}
[null,null,"◎出品申込書",null,null,null,null,null,null,null,null,null,null,null,null,"５月２４日(金)までに提出(厳守)",null,null,null,null,null,null,null,null,null,null,null,null,null,null,null,"受付番号",null,null,null,"※",null,null,null,null,null,null,null,null,"一覧表\n整理番号"]
[null,null,null,"◆","切り取らず、作品左上部にクリップで貼付してください。",null,null,null,null,null,null,null,null,null,null,null,null,null,null,null,null,null,null,null,null,null,null,null,null,null,null,null,null,null,null,"※印欄には記入しないこと",null,null,null,null,null,null,null,null,1]
[null,null,null,"◆","横作品の場合は出品申込書が縦作品と同じ側にくるように重ねてください。"]
[null,null,null,"◆","作品は1枚ずつ畳まないよう、整理番号順に重ねてから畳んでください。",null,null,null,null,null,null,null,null,null,null,null,null,null,null,null,null,null,null,null,null,null,null,null,null,null,null,null,null,null,null,null,null,null,null,null,null,null,null,null,null,null,null,null,null,null,null,null,null,null,null,null,null,null,null,null,null,null,null,null,null,null,null,null,null,null,null,null,null,"消さないでください"]
[null,null," 学校名",null,null,null,null,null,null,null,null,null,null,null,null,null," 氏名",null,null,{"$f":"VLOOKUP(AS2,出品一覧表!$A$8:$I$66,3)","v":"しみず　だいすけ"},null,null,null,null,null,null,null,null,null,null,null,null,null,null,null,null," 学年"]
[null,null,null,{"$f":"出品一覧表!$D$3","v":0},null,null,null,null,null,null,null,null,null,null,null,null,null,null,null,{"$f":"VLOOKUP(AS2,出品一覧表!$A$8:$I$66,2)","v":"清　水　大　輔"},null,null,null,null,null,null,null,null,null,null,null,null,null,null,null,null,null,null,{"$f":"VLOOKUP(AS2,出品一覧表!$A$8:$I$66,4)","v":0},null,null,null,null,null,null,null,null,null,null,null,null,null,null,null,null,null,null,null,null,null,null,null,null,null,null,null,null,null,null,null,null,null,null,null,{"$f":"VLOOKUP(AS2,出品一覧表!$A$8:$I$89,8)","v":0}]
[]
[null,null,null,null,null,null,null,null,null,null,null,"高等学校",null,null,null,null,null,null,null,null,null,null,null,null,null,null,null,null,null,null,null,null,null,null,null,null,null,null,null,null,"年"]
[null,null," 作品題名",null,null,null,null,null,null,null,null,null,null,null,null,null," 釈文"]
[null,null,null,null,null,null,null,null,null,null,null,null,null,null,null,null,null,{"$f":"VLOOKUP(AS2,出品一覧表!$A$8:$I$66,9)","v":0}]
[null,null,null,{"$f":"VLOOKUP(AS2,出品一覧表!$A$8:$I$66,5)","v":"〇〇〇　臨書"}]
[]
[]
[]
[null,null,null,null,null,null,null,{"$f":"IF(AS2>0,VLOOKUP(出品申込書!AS2,出品一覧表!$A$8:$I$66,7,FALSE),\"\")","v":0}]
[]
[null,null,"種別",null,null,null,null,null,null,null,null,null,null,null,null,null,null,"作品(本紙)の規格は半切たてです。ただし、仮名(小字)作品に限り、よこも可。篆刻作品は印影のみ１顆、半紙大の用紙に押印すること。"]
[null,null,null,null,{"$f":"IF(BW6=\"漢字\",\"漢字\",\"\")","v":""},null,null,{"$f":"IF(BW6=\"仮名\",\"仮名\",\"\")","v":""},null,null,{"$f":"IF(BW6=\"交じり\",\"交じり\",\"\")","v":""},null,null,{"$f":"IF(BW6=\"篆刻\",\"篆刻\",\"\")","v":""}]
[]
[]
[]
[null,null,null,"搬出は、各団体、個人でお願いします。"]
[]
[null,null,null,null,null,null,null,null,null,null,null,null,null,null,null,null,null,null,null,null,null,null,null,null,null,null,null,null,null,null,null,null,null,null,null,null,null,null,null,null,null,{"$f":"出品一覧表!C1","v":"第22回岩手県高等学校書道作品コンクール"}]
[]
[null,null,null,null,null,null,null,null,null,null,null,null,null,null,null,null,null,null,null,"切り取らない"]
[]
[null,null,"◎ 作　品　添　付　票　（A）",null,null,null,null,null,null,null,null,null,null,null,null,null,null,null,null,null,null,null,null,null,null,null,null,null,null,null,null,"受付番号",null,null,null,"※"]
[]
[null,null," 学校名",null,null,null,null,null,null,null,null,null,null,null,null,null," 氏名",null,null,{"$f":"T5","v":"しみず　だいすけ"},null,null,null,null,null,null,null,null,null,null,null,null,null,null,null,null," 学年"]
[null,null,null,{"$f":"D6","v":0},null,null,null,null,null,null,null,null,null,null,null,null,null,null,null,{"$f":"T6","v":"清　水　大　輔"},null,null,null,null,null,null,null,null,null,null,null,null,null,null,null,null,null,null,{"$f":"AM6","v":0}]
[]
[null,null,null,null,null,null,null,null,null,null,null,"高等学校",null,null,null,null,null,null,null,null,null,null,null,null,null,null,null,null,null,null,null,null,null,null,null,null,null,null,null,null,"年"]
[]
[null,null,null,{"$f":"D11","v":"〇〇〇　臨書"},null,null,null,null,null,null,null,null,null,null,null,null,{"$f":"IF(R10>0,LEFT(R10,5),\"\")","v":""},null,null,null,null,null,null,{"$f":"H15","v":0}]
[]
[null,null,null,null,null,null,null,null,null,null,null,null,null,null,null,null,null,null,null,null,null,null,null,null,null,null,null,null,null,null,null,null,null,null,null,null,null,null,null,null,null,{"$f":"$AP$24","v":"第22回岩手県高等学校書道作品コンクール"}]
[]
[null,null,null,null,null,null,null,null,null,null,null,null,null,null,null,null,null,null,null,"切り取らない"]
[]
[null,null,"◎ 作　品　添　付　票　（B）",null,null,null,null,null,null,null,null,null,null,null,null,null,null,null,null,null,null,null,null,null,null,null,null,null,null,null,null,"受付番号",null,null,null,"※"]
[]
[null,null," 学校名",null,null,null,null,null,null,null,null,null,null,null,null,null," 氏名",null,null,{"$f":"T5","v":"しみず　だいすけ"},null,null,null,null,null,null,null,null,null,null,null,null,null,null,null,null," 学年"]
[null,null,null,{"$f":"D6","v":0},null,null,null,null,null,null,null,null,null,null,null,null,null,null,null,{"$f":"T6","v":"清　水　大　輔"},null,null,null,null,null,null,null,null,null,null,null,null,null,null,null,null,null,null,{"$f":"AM6","v":0}]
[]
[null,null,null,null,null,null,null,null,null,null,null,"高等学校",null,null,null,null,null,null,null,null,null,null,null,null,null,null,null,null,null,null,null,null,null,null,null,null,null,null,null,null,"年"]
[]
[null,null,null,"搬出は、各団体、個人でお願いします。"]
[]
[null,null,null,null,null,null,null,null,null,null,null,null,null,null,null,null,null,null,null,null,null,null,null,null,null,null,null,null,null,null,null,null,null,null,null,null,null,null,null,null,null,{"$f":"$AP$37","v":"第22回岩手県高等学校書道作品コンクール"}]

{"sheet":"出品一覧表 （手書きで提出する場合)","index":2,"n_rows":8,"n_cols":11,"rows_kept":8,"cut":false,"hidden":false,"merged":[[35,1,35,2],[35,4,35,5],[37,1,37,2],[37,4,37,5],[39,1,39,2],[39,4,39,5],[29,1,29,2],[29,4,29,5],[31,1,31,2],[31,4,31,5],[33,1,33,2],[33,4,33,5],[23,1,23,2],[23,4,23,5],[25,1,25,2],[25,4,25,5],[27,1,27,2],[27,4,27,5],[17,1,17,2],[17,4,17,5],[19,1,19,2],[19,4,19,5],[21,1,21,2],[21,4,21,5],[11,1,11,2],[11,4,11,5],[13,1,13,2],[13,4,13,5],[15,1,15,2],[15,4,15,5],[4,3,4,5],[5,3,5,5],[7,1,7,2],[7,4,7,5],[9,1,9,2],[9,4,9,5],[0,3,0,5],[2,3,2,4],[2,8,3,8],[2,9,3,9],[2,10,3,10],[3,3,3,5]]}
[null,"出品一覧表",null,{"$f":"CONCATENATE(I3,J3,K3)","v":"第22回岩手県高等学校書道作品コンクール"}]
[]
[null,null,"団体名",null,null,"高等学校",null,null,"第",22,"回岩手県高等学校書道作品コンクール"]
[null,null,"住所"]
[null,null,"℡"]
[null,null,"責任教師"]
[]
["整理番号","氏　　名　",null,"学　年","作　品　題　名",null,"横"]

{"sheet":"出品申込書 (手書きで提出する場合)","index":3,"n_rows":51,"n_cols":75,"rows_kept":51,"cut":false,"hidden":false,"merged":[[46,11,46,15],[46,40,46,41],[26,19,27,24],[28,36,28,41],[31,3,32,14],[31,18,32,33],[31,38,32,39],[33,11,33,15],[33,40,33,41],[39,19,40,24],[41,36,41,41],[44,3,45,14],[44,18,45,33],[44,38,45,39],[10,17,15,40],[11,3,14,14],[15,7,16,9],[17,2,20,3],[17,17,20,40],[18,4,19,6],[18,7,19,9],[18,10,19,12],[18,13,19,15],[0,2,0,13],[0,15,0,30],[0,36,0,41],[6,3,7,14],[6,18,8,33],[6,38,7,39],[8,11,8,15],[8,40,8,41],[1,35,1,42]]}
[null,null,"◎出品申込書",null,null,null,null,null,null,null,null,null,null,null,null,"５月２４日(金)までに提出(厳守)",null,null,null,null,null,null,null,null,null,null,null,null,null,null,null,"受付番号",null,null,null,"※"]
[null,null,null,"◆","切り取らず、作品左上部にクリップで貼付してください。",null,null,null,null,null,null,null,null,null,null,null,null,null,null,null,null,null,null,null,null,null,null,null,null,null,null,null,null,null,null,"※印欄には記入しないこと"]
[null,null,null,"◆","横作品の場合は出品申込書が縦作品と同じ側にくるように重ねてください。"]
[null,null,null,"◆","作品は1枚ずつ畳まないよう、整理番号順に重ねてから畳んでください。",null,null,null,null,null,null,null,null,null,null,null,null,null,null,null,null,null,null,null,null,null,null,null,null,null,null,null,null,null,null,null,null,null,null,null,null,null,null,null,null,null,null,null,null,null,null,null,null,null,null,null,null,null,null,null,null,null,null,null,null,null,null,null,null,null,null,null,null,"消さないでください"]
[null,null,null,"◆","一人につき１部作成。複数出品の場合はこの用紙をコピーして使用してください。"]
[null,null," 学校名",null,null,null,null,null,null,null,null,null,null,null,null,null," 氏名（ふりがな）",null,null,null,null,null,null,null,null,null,null,null,null,null,null,null,null,null,null,null," 学年"]
[null,null,null,null,null,null,null,null,null,null,null,null,null,null,null,null,null,null,null,null,null,null,null,null,null,null,null,null,null,null,null,null,null,null,null,null,null,null,null,null,null,null,null,null,null,null,null,null,null,null,null,null,null,null,null,null,null,null,null,null,null,null,null,null,null,null,null,null,null,null,null,null,null,null,{"$f":"VLOOKUP(AS2,出品一覧表!$A$8:$I$89,8)","v":{"$error":"#N/A"}}]
[]
[null,null,null,null,null,null,null,null,null,null,null,"高等学校",null,null,null,null,null,null,null,null,null,null,null,null,null,null,null,null,null,null,null,null,null,null,null,null,null,null,null,null,"年"]
[null,null," 作品題名",null,null,null,null,null,null,null,null,null,null,null,null,null," 釈文"]
[]
[]
[]
[]
[]
[null,null,null,null,null,null,null,{"$f":"IF(AS2>0,VLOOKUP('出品申込書 (手書きで提出する場合)'!AS2,'出品一覧表 （手書きで提出する場合)'!$A$8:$G$40,7,FALSE),\"\")","v":""}]
[]
[null,null,"種別",null,null,null,null,null,null,null,null,null,null,null,null,null,null,"作品(本紙)の規格は半切たてです。ただし、仮名(小字)作品に限り、よこも可。篆刻作品は印影のみ１顆、半紙大の用紙に押印すること。"]
[null,null,null,null,"漢字",null,null,"仮名",null,null,"交じり",null,null,"篆刻"]
[]
[]
[]
[null,null,null,"搬出は、各団体、個人でお願いします。"]
[]
[null,null,null,null,null,null,null,null,null,null,null,null,null,null,null,null,null,null,null,null,null,null,null,null,null,null,null,null,null,null,null,null,null,null,null,null,null,null,null,null,null,{"$f":"出品一覧表!C1","v":"第22回岩手県高等学校書道作品コンクール"}]
[]
[null,null,null,null,null,null,null,null,null,null,null,null,null,null,null,null,null,null,null,"切り取らない"]
[]
[null,null,"◎ 作　品　添　付　票　（A）",null,null,null,null,null,null,null,null,null,null,null,null,null,null,null,null,null,null,null,null,null,null,null,null,null,null,null,null,"受付番号",null,null,null,"※"]
[]
[null,null," 学校名",null,null,null,null,null,null,null,null,null,null,null,null,null," 氏名",null,null,null,null,null,null,null,null,null,null,null,null,null,null,null,null,null,null,null," 学年"]
[null,null,null,{"$f":"D7","v":0},null,null,null,null,null,null,null,null,null,null,null,null,null,null,{"$f":"S7","v":0},null,null,null,null,null,null,null,null,null,null,null,null,null,null,null,null,null,null,null,{"$f":"AM7","v":0}]
[]
[null,null,null,null,null,null,null,null,null,null,null,"高等学校",null,null,null,null,null,null,null,null,null,null,null,null,null,null,null,null,null,null,null,null,null,null,null,null,null,null,null,null,"年"]
[]
[null,null,null,"搬出は、各団体、個人でお願いします。",null,null,null,null,null,null,null,null,null,null,null,null,{"$f":"IF(R11>0,LEFT(R11,5),\"\")","v":""},null,null,null,null,null,null,{"$f":"H16","v":""}]
[]
[null,null,null,null,null,null,null,null,null,null,null,null,null,null,null,null,null,null,null,null,null,null,null,null,null,null,null,null,null,null,null,null,null,null,null,null,null,null,null,null,null,{"$f":"$AP$25","v":"第22回岩手県高等学校書道作品コンクール"}]
[]
[null,null,null,null,null,null,null,null,null,null,null,null,null,null,null,null,null,null,null,"切り取らない"]
[]
[null,null,"◎ 作　品　添　付　票　（B）",null,null,null,null,null,null,null,null,null,null,null,null,null,null,null,null,null,null,null,null,null,null,null,null,null,null,null,null,"受付番号",null,null,null,"※"]
[]
[null,null," 学校名",null,null,null,null,null,null,null,null,null,null,null,null,null," 氏名",null,null,null,null,null,null,null,null,null,null,null,null,null,null,null,null,null,null,null," 学年"]
[null,null,null,{"$f":"D7","v":0},null,null,null,null,null,null,null,null,null,null,null,null,null,null,{"$f":"S7","v":0},null,null,null,null,null,null,null,null,null,null,null,null,null,null,null,null,null,null,null,{"$f":"AM7","v":0}]
[]
[null,null,null,null,null,null,null,null,null,null,null,"高等学校",null,null,null,null,null,null,null,null,null,null,null,null,null,null,null,null,null,null,null,null,null,null,null,null,null,null,null,null,"年"]
[]
[null,null,null,"搬出は、各団体、個人でお願いします。"]
[]
[null,null,null,null,null,null,null,null,null,null,null,null,null,null,null,null,null,null,null,null,null,null,null,null,null,null,null,null,null,null,null,null,null,null,null,null,null,null,null,null,null,{"$f":"$AP$38","v":"第22回岩手県高等学校書道作品コンクール"}]